{"text_format":"1","workbook":"xlsx","n_sheets":7,"sheets":["COVER PAGE","General Instructions","Sheet1","Institution_Codes","For official use only","Sheet2","Sheet3"],"not_rendered":{"charts":0,"images":2,"macros":1,"external_links":5,"defined_names":497,"comments":0,"pivot_tables":0},"unopened":[],"bounds":{"document_bytes":16777216,"sheet_cells":100000,"rows_first":2000,"rows_last":500,"rows_between":2000,"halvings":0,"cell_chars":16384,"cell_head_chars":4096},"cells_cut":0,"cells_raw":0,"read":"whole","date_system":"1900"}

{"sheet":"COVER PAGE","index":0,"n_rows":15,"n_cols":4,"rows_kept":15,"cut":false,"hidden":false,"merged":[[12,3,12,4],[6,1,6,7],[7,1,7,7],[8,1,8,2],[8,3,8,4],[8,5,8,7],[9,3,9,4],[10,1,10,7],[1,1,1,7],[2,1,2,7],[3,1,3,7],[5,1,5,7],[11,2,11,5]]}
[]
[null,"CENTRAL BANK OF TRINIDAD AND TOBAGO "]
[null,"V1.1"]
[null,"Quarterly Shareholdings Report and Statement of Changes in Equity"]
[]
[null,"FOR "]
[null,"Select Institution"]
[null,"For the Quarter Ended:"]
[null,"Month",null,"June"]
[null,null,"Year",2024]
[null,"Date Submitted:"]
[null,null,"2024-10-27"]
[null,null,null,"Type - mm/dd/yyyy"]
[null,"Date Format Check"]
[null,{"$f":"TEXT(DATE(LEFT(MID(LEFT(TEXT(MID(CELL(\"filename\",A1),FIND(\"[\",CELL(\"filename\",A1))+1,FIND(\"]\",CELL(\"filename\",A1))-FIND(\"[\",CELL(\"filename\",A1))-1),LEN(MID(CELL(\"filename\",A1),FIND(\"[\",CELL(\"filename\",A1))+1,FIND(\"]\",CELL(\"filename\",A1))-FIND(\"[\",CELL(\"filename\",A1))-1))),FIND(\".xlsx\",TEXT(MID(CELL(\"filename\",A1),FIND(\"[\",CELL(\"filename\",A1))+1,FIND(\"]\",CELL(\"filename\",A1))-FIND(\"[\",CELL(\"filename\",A1))-1),LEN(MID(CELL(\"filename\",A1),FIND(\"[\",CELL(\"filename\",A1))+1,FIND(\"]\",CELL(\"filename\",A1))-FIND(\"[\",CELL(\"filename\",A1))-1))))-1),FIND(\"~\",SUBSTITUTE(TEXT(MID(CELL(\"filename\",A1),FIND(\"[\",CELL(\"filename\",A1))+1,FIND(\"]\",CELL(\"filename\",A1))-FIND(\"[\",CELL(\"filename\",A1))-1),LEN(MID(CELL(\"filename\",A1),FIND(\"[\",CELL(\"filename\",A1))+1,FIND(\"]\",CELL(\"filename\",A1))-FIND(\"[\",CELL(\"filename\",A1))-1))),\"_\",\"~\",3))+1,LEN(TEXT(MID(CELL(\"filename\",A1),FIND(\"[\",CELL(\"filename\",A1))+1,FIND(\"]\",CELL(\"filename\",A1))-FIND(\"[\",CELL(\"filename\",A1))-1),LEN(MID(CELL(\"filename\",A1),FIND(\"[\",CELL(\"filename\",A1))+1,FIND(\"]\",CELL(\"filename\",A1))-FIND(\"[\",CELL(\"filename\",A1))-1))))),4),VLOOKUP(VALUE(MID(MID(LEFT(TEXT(MID(CELL(\"filename\",A1),FIND(\"[\",CELL(\"filename\",A1))+1,FIND(\"]\",CELL(\"filename\",A1))-FIND(\"[\",CELL(\"filename\",A1))-1),LEN(MID(CELL(\"filename\",A1),FIND(\"[\",CELL(\"filename\",A1))+1,FIND(\"]\",CELL(\"filename\",A1))-FIND(\"[\",CELL(\"filename\",A1))-1))),FIND(\".xlsx\",TEXT(MID(CELL(\"filename\",A1),FIND(\"[\",CELL(\"filename\",A1))+1,FIND(\"]\",CELL(\"filename\",A1))-FIND(\"[\",CELL(\"filename\",A1))-1),LEN(MID(CELL(\"filename\",A1),FIND(\"[\",CELL(\"filename\",A1))+1,FIND(\"]\",CELL(\"filename\",A1))-FIND(\"[\",CELL(\"filename\",A1))-1))))-1),FIND(\"~\",SUBSTITUTE(TEXT(MID(CELL(\"filename\",A1),FIND(\"[\",CELL(\"filename\",A1))+1,FIND(\"]\",CELL(\"filename\",A1))-FIND(\"[\",CELL(\"filename\",A1))-1),LEN(MID(CELL(\"filename\",A1),FIND(\"[\",CELL(\"filename\",A1))+1,FIND(\"]\",CELL(\"filename\",A1))-FIND(\"[\",CELL(\"filename\",A1))-1))),\"_\",\"~\",3))+1,LEN(TEXT(MID(CELL(\"filename\",A1),FIND(\"[\",CELL(\"filename\",A1))+1,FIND(\"]\",CELL(\"filename\",A1))-FIND(\"[\",CELL(\"filename\",A1))-1),LEN(MID(CELL(\"filename\",A1),FIND(\"[\",CELL(\"filename\",A1))+1,FIND(\"]\",CELL(\"filename\",A1))-FIND(\"[\",CELL(\"filename\",A1))-1))))),5+1,LEN(MID(LEFT(TEXT(MID(CELL(\"filename\",A1),FIND(\"[\",CELL(\"filename\",A1))+1,FIND(\"]\",CELL(\"filename\",A1))-FIND(\"[\",CELL(\"filename\",A1))-1),LEN(MID(CELL(\"filename\",A1),FIND(\"[\",CELL(\"filename\",A1))+1,FIND(\"]\",CELL(\"filename\",A1))-FIND(\"[\",CELL(\"filename\",A1))-1))),FIND(\".xlsx\",TEXT(MID(CELL(\"filename\",A1),FIND(\"[\",CELL(\"filename\",A1))+1,FIND(\"]\",CELL(\"filename\",A1))-FIND(\"[\",CELL(\"filename\",A1))-1),LEN(MID(CELL(\"filename\",A1),FIND(\"[\",CELL(\"filename\",A1))+1,FIND(\"]\",CELL(\"filename\",A1))-FIND(\"[\",CELL(\"filename\",A1))-1))))-1),FIND(\"~\",SUBSTITUTE(TEXT(MID(CELL(\"filename\",A1),FIND(\"[\",CELL(\"filename\",A1))+1,FIND(\"]\",CELL(\"filename\",A1))-FIND(\"[\",CELL(\"filename\",A1))-1),LEN(MID(CELL(\"filename\",A1),FIND(\"[\",CELL(\"filename\",A1))+1,FIND(\"]\",CELL(\"filename\",A1))-FIND(\"[\",CELL(\"filename\",A1))-1))),\"_\",\"~\",3))+1,LEN(TEXT(MID(CELL(\"filename\",A1),FIND(\"[\",CELL(\"filename\",A1))+1,FIND(\"]\",CELL(\"filename\",A1))-FIND(\"[\",CELL(\"filename\",A1))-1),LEN(MID(CELL(\"filename\",A1),FIND(\"[\",CELL(\"filename\",A1))+1,FIND(\"]\",CELL(\"filename\",A1))-FIND(\"[\",CELL(\"filename\",A1))-1)))))))),Institution_Codes!C9:D12,2,FALSE),\"1\"),\"YYYY-mm-dd\") = (TEXT(TEXT(DATE(D10,MONTH(DATEVALUE(D9 & 1)),\"1\"),\"MMM-YYYY\"),\"yyyy-MM-dd\"))","v":{"$error":"#VALUE!"}}]

{"sheet":"General Instructions","index":1,"n_rows":16,"n_cols":3,"rows_kept":16,"cut":false,"hidden":false,"merged":[[13,2,13,15],[15,2,15,15],[4,2,4,11],[5,2,5,12]]}
[null,"Instructions:"]
[]
[null,"1.","Do not amend the structure/format."]
[null,"2.","Select the \"Convert to (.xlsx) and Save\" button at the top of this page to save the final version for submission.  "]
[null,"3.","Use the file name structure \"Company Code_CB01_V1.1_YYYYQ##\" (example - 2023Q4 is the date format for the fourth quarter of 2023). Note all files sent to institutions will have the company code. "]
[null,"4.","After saving as an 'xlsx' file with the file name structure above, select the date on the 'COVER PAGE' which must be consistent with the date in the name of the file. Click 'save'. The 'Date Check' must be 'TRUE'."]
[null,"5.","Once the steps above are completed the submission can be uploaded into GoAnywhere."]
[null,"6.","The Quarterly Shareholdings Report and Statement of Changes in Equity captures the following:"]
[null,null,"Part 1: Quarterly Shareholdings of 5% and more of Issued Share Capital"]
[null,null,"Part 2: Statement of Changes in Shareholder's Equity"]
[]
[null,"7.","Part 1: Quarterly Shareholdings of 5% and more of Issued Share Capital"]
[null,null,"The name and country of residence for the nominee shareholder must be entered in this section."]
[null,null,"Details of shareholding including number of shares, percentage of issued share capital, type of shares (ordinary or preference) and change in shareholding over previous quarter should be specified. A positive number would indicate an acquisition while a negative number would indicate a divestment. The number of shares should reconcile with the total issued share capital."]
[null,"8.","Part 2: Statement of Changes in Shareholder's Equity"]
[null,null,"Complete the table detailing the statement of changes in Shareholder's Equity. The Capital and Foreign exchange gains (losses) included in revenue in arriving at the net operating profit, if any, must also be updated."]

{"sheet":"Sheet1","index":2,"n_rows":67,"n_cols":7,"rows_kept":67,"cut":false,"hidden":false,"merged":[[30,1,30,2],[22,4,22,6],[28,1,28,2],[25,1,25,2],[22,1,22,2],[29,1,29,2],[23,1,23,2],[24,1,24,2],[23,4,23,6],[24,4,24,6],[25,4,25,6],[26,4,26,6],[27,4,27,6],[28,4,28,6],[29,4,29,6],[62,3,62,5],[30,4,30,6],[0,1,0,6],[1,1,1,6],[3,1,3,6],[4,1,4,6],[6,1,6,2],[7,1,7,2],[8,1,8,2],[10,1,10,6],[7,3,7,4],[8,3,8,4],[21,1,21,6],[26,1,26,2],[27,1,27,2],[31,5,37,6],[38,1,38,6],[39,1,39,6],[61,3,61,5],[40,5,40,6],[41,5,41,6],[42,5,42,6],[43,5,43,6],[44,5,44,6],[45,5,45,6],[46,5,46,6],[47,5,47,6],[48,5,48,6],[49,5,49,6],[56,1,56,6],[52,1,52,6]]}
[null,"Financial Institutions Act, 2008"]
[null,"[Section 75 (1) & (4)]"]
[]
[null,"Part 1: Quarterly Shareholdings "]
[null,"of 5% and More of Issued Share Capital"]
[]
[null,"Name of Licensee:",null,{"$f":"'COVER PAGE'!B7","v":"Select Institution"}]
[null,"Quarter Ended:",null,{"$f":"CONCATENATE('COVER PAGE'!D9,\" \", 'COVER PAGE'!D10)","v":"June 2024"}]
[null,"Total Issued Share Capital:"]
[]
[null,"Section 1 - Details of Shareholding"]
[null,"Name of Shareholder","Country of Residence","Number of Shares Owned","Percentage of Issued Share Capital","Type of Shares (Ordinary or Preference)","Change from Previous Quarter"]
[]
[]
[]
[]
[]
[]
[]
[]
[]
[null,"Section 2 - Details of Changes in Shareholding"]
[null,"Name and Residential or Registered Address of Shareholder",null,"Change from Previous Quarter","Date and Method* of Acquisition or Divestment"]
[]
[]
[]
[]
[]
[]
[]
[]
[null,"* Please indicate whether shares acquired by means of exchange, purchase, gift, "]
[null,"   bonus issue, rights issue, bequest, upon intestacy, or otherwise."]
[null,"NB: A licensee should complete this form by listing all persons who, at the end of each "]
[null,"quarter own 5% or more of issued share capital."]
[]
[]
[]
[null,"Part 2: Statement of Changes in Shareholder's Equity"]
[null,"(TT$'000s)"]
[null,null,"Issued and Paid Up Capital","Retained Earnings","Other Reserves","Total"]
[null,"Opening Balance"]
[null,"Additions/(Reductions) to Capital"]
[null,"Net Operating Profit/(Loss) after Tax"]
[null,"Dividends/Profits Remitted"]
[null,"Other Additions/(Reductions), specify:"]
[null,"(1)"]
[null,"(2)"]
[null,"(3)"]
[null,"Ending Balance"]
[]
[null,"Memorandum Item: "]
[null,"Capital and foreign exchange gains (losses) included in revenue in arriving at  "]
[null,"net operating profit, if any."]
[]
[null,"I hereby certify that data submitted in the e-copy submission are the exact values in the hard-copy return for this period"]
[]
[]
[]
[]
[]
[]
[null,"Company Stamp and Date",null,"Name of Authorised Official "]
[]
[]
[]
[null,"Authorised Signature"]

{"sheet":"Institution_Codes","index":3,"n_rows":54,"n_cols":9,"rows_kept":54,"cut":false,"hidden":true,"merged":[]}
["Select Institution","-",null,"Quarter",null,null,null,"Year"]
["ANSA Bank Limited ","BBDA",null,"Select Month",1,null,null,"Select Year","00"]
["ANSA Merchant Bank Limited ","AMAL",1,"March",2,null,null,2000,"01"]
["Caribbean Finance Company Limited","CFC",2,"June",3,null,null,2001,"02"]
["CIBC Caribbean Bank (Trinidad and Tobago)","FCIB",3,"September",4,null,null,2002,"03"]
["Citibank (Trinidad & Tobago) Limited","CITI",4,"December",null,null,null,2003,"04"]
["Citicorp Merchant Bank Limited","CMBL",null,null,null,null,null,2004,"05"]
["Development Finance Limited ","DFL",null,null,null,null,null,2005,"06"]
["Fidelity Finance and Leasing Company Limited ","FFL",1,3,null,null,null,2006,"07"]
["First Citizens Bank Limited","FCB",2,6,null,null,null,2007,"08"]
["First Citizens Depository Services Limited","FCMT",3,9,null,null,null,2008,"09"]
["First Citizens Trustee Services Limited","FCTS",4,12,null,null,null,2009,"10"]
["First Citizens Group Financial Holdings Limited","FCBHC",null,null,null,null,null,2010,"11"]
["Guardian Group Trust Limited ","GAM",null,null,null,null,null,2011,"12"]
["Island Finance Trinidad and Tobago Limited","ISFL",null,null,null,null,null,2012,"13"]
["JMMB Bank (T&T) Limited ","ICBL",null,null,null,null,null,2013,"14"]
["JMMB Express Finance (T&T) Limited","ITBM",null,null,null,null,null,2014,"15"]
["Jamaican Money Market Brokers Bank Limited","JMMBHC",null,null,null,null,null,2015,"16"]
["Massy Finance GFC Limited ","GFC",null,null,null,null,null,2016,"17"]
["NCB Merchant Bank (Trinidad and Tobago) Limited","TFL",null,null,null,null,null,2017,"18"]
["RBC Investment Management (Caribbean) Limited","RBAM",null,null,null,null,null,2018,"19"]
["RBC Merchant Bank (Caribbean) Limited","RMBF",null,null,null,null,null,2019,"20"]
["RBC Royal Bank (Trinidad and Tobago) Limited","RBTT",null,null,null,null,null,2020,"21"]
["RBC Trust (Trinidad and Tobago) Limited","RBT",null,null,null,null,null,2021,"22"]
["RBC Financial (Caribbean) Limited","RBTT_CONS"]
["Republic Bank Limited ","RBL",null,null,null,null,null,2022,"23"]
["Republic Financial Holdings Limited","RFHL",null,null,null,null,null,2023,"24"]
["Scotia Investments Trinidad and Tobago Limited","SITT",null,null,null,null,null,2024,"25"]
["Scotiabank Trinidad and Tobago Limited ","BNS",null,null,null,null,null,2025,"26"]
[null,null,null,null,null,null,null,2026,"27"]
[null,null,null,null,null,null,null,2027,"28"]
[null,null,null,null,null,null,null,2028,"29"]
[null,null,null,null,null,null,null,2029,"30"]
[null,null,null,null,null,null,null,2030,"31"]
[null,null,null,null,null,null,null,2031,"32"]
[null,null,null,null,null,null,null,2032,"33"]
[null,null,null,null,null,null,null,2033,"34"]
[null,null,null,null,null,null,null,2034,"35"]
[null,null,null,null,null,null,null,2035,"36"]
[null,null,null,null,null,null,null,2036,"37"]
[null,null,null,null,null,null,null,2037,"38"]
[null,null,null,null,null,null,null,2038,"39"]
[null,null,null,null,null,null,null,2039,"40"]
[null,null,null,null,null,null,null,2040,"41"]
[null,null,null,null,null,null,null,2041,"42"]
[null,null,null,null,null,null,null,2042,"43"]
[null,null,null,null,null,null,null,2043,"44"]
[null,null,null,null,null,null,null,2044,"45"]
[null,null,null,null,null,null,null,2045,"46"]
[null,null,null,null,null,null,null,2046,"47"]
[null,null,null,null,null,null,null,2047,"48"]
[null,null,null,null,null,null,null,2048,"49"]
[null,null,null,null,null,null,null,2049,"50"]
[null,null,null,null,null,null,null,2050]

{"sheet":"For official use only","index":4,"n_rows":137,"n_cols":2,"rows_kept":137,"cut":false,"hidden":true,"merged":[[45,0,45,1],[0,0,0,1],[1,0,1,1],[12,0,12,1],[23,0,23,1],[34,0,34,1]]}
["For official use only"]
["Issued and Paid Up Capital"]
["   Opening Balance",{"$f":"Sheet1!C42","v":0}]
["   Additions/(Reductions) to Capital",{"$f":"Sheet1!C43","v":0}]
["   Net Operating Profit/(Loss) after Tax",{"$f":"Sheet1!C44","v":0}]
["   Dividends/Profits Remitted",{"$f":"Sheet1!C45","v":0}]
["   Other Additions/(Reductions)",{"$f":"Sheet1!C46","v":0}]
[1,{"$f":"Sheet1!C47","v":0}]
[2,{"$f":"Sheet1!C48","v":0}]
[3,{"$f":"Sheet1!C49","v":0}]
["   Ending Balance",{"$f":"Sheet1!C50","v":0}]
[]
["Retained Earnings"]
["   Opening Balance",{"$f":"Sheet1!D42","v":0}]
["   Additions/(Reductions) to Capital",{"$f":"Sheet1!D43","v":0}]
["   Net Operating Profit/(Loss) after Tax",{"$f":"Sheet1!D44","v":0}]
["   Dividends/Profits Remitted",{"$f":"Sheet1!D45","v":0}]
["   Other Additions/(Reductions)",{"$f":"Sheet1!D46","v":0}]
[1,{"$f":"Sheet1!D47","v":0}]
[2,{"$f":"Sheet1!D48","v":0}]
[3,{"$f":"Sheet1!D49","v":0}]
["   Ending Balance",{"$f":"Sheet1!D50","v":0}]
[]
["Other Reserves"]
["   Opening Balance",{"$f":"Sheet1!E42","v":0}]
["   Additions/(Reductions) to Capital",{"$f":"Sheet1!E43","v":0}]
["   Net Operating Profit/Loss After Tax",{"$f":"Sheet1!E44","v":0}]
["   Dividends/Profits Remitted",{"$f":"Sheet1!E45","v":0}]
["   Other Additions/(Reductions)",{"$f":"Sheet1!E46","v":0}]
[1,{"$f":"Sheet1!E47","v":0}]
[2,{"$f":"Sheet1!E48","v":0}]
[3,{"$f":"Sheet1!E49","v":0}]
["   Ending Balance",{"$f":"Sheet1!E50","v":0}]
[]
["Total"]
["   Opening Balance",{"$f":"Sheet1!F42","v":0}]
["   Additions/(Reductions) to Capital",{"$f":"Sheet1!F43","v":0}]
["   Net Operating Profit/(Loss) after Tax",{"$f":"Sheet1!F44","v":0}]
["   Dividends/Profits Remitted",{"$f":"Sheet1!F45","v":0}]
["   Other Additions/(Reductions)",{"$f":"Sheet1!F46","v":0}]
[1,{"$f":"Sheet1!F47","v":0}]
[2,{"$f":"Sheet1!F48","v":0}]
[3,{"$f":"Sheet1!F49","v":0}]
["   Ending Balance",{"$f":"Sheet1!F50","v":0}]
[]
["Memo Items:"]
["Capital/FX Gain/Loss",{"$f":"Sheet1!C54","v":0}]
[]
["Name of Shareholder"]
["Country_1",{"$f":"Sheet1!B13","v":0}]
["Country_2",{"$f":"Sheet1!B14","v":0}]
["Country_3",{"$f":"Sheet1!B15","v":0}]
["Country_4",{"$f":"Sheet1!B16","v":0}]
["Country_5",{"$f":"Sheet1!B17","v":0}]
["Country_6",{"$f":"Sheet1!B18","v":0}]
["Country_7",{"$f":"Sheet1!B19","v":0}]
["Country_8",{"$f":"Sheet1!B20","v":0}]
[]
["Country of Residence"]
["Country_1",{"$f":"Sheet1!C13","v":0}]
["Country_2",{"$f":"Sheet1!C14","v":0}]
["Country_3",{"$f":"Sheet1!C15","v":0}]
["Country_4",{"$f":"Sheet1!C16","v":0}]
["Country_5",{"$f":"Sheet1!C17","v":0}]
["Country_6",{"$f":"Sheet1!C18","v":0}]
["Country_7",{"$f":"Sheet1!C19","v":0}]
["Country_8",{"$f":"Sheet1!C20","v":0}]
[]
["Number of Shares Owned"]
["Country_1",{"$f":"Sheet1!D13","v":0}]
["Country_2",{"$f":"Sheet1!D14","v":0}]
["Country_3",{"$f":"Sheet1!D15","v":0}]
["Country_4",{"$f":"Sheet1!D16","v":0}]
["Country_5",{"$f":"Sheet1!D17","v":0}]
["Country_6",{"$f":"Sheet1!D18","v":0}]
["Country_7",{"$f":"Sheet1!D19","v":0}]
["Country_8",{"$f":"Sheet1!D20","v":0}]
[]
["Percentage of Issued Share Capital"]
["Country_1",{"$f":"Sheet1!E13","v":0}]
["Country_2",{"$f":"Sheet1!E14","v":0}]
["Country_3",{"$f":"Sheet1!E15","v":0}]
["Country_4",{"$f":"Sheet1!E16","v":0}]
["Country_5",{"$f":"Sheet1!E17","v":0}]
["Country_6",{"$f":"Sheet1!E18","v":0}]
["Country_7",{"$f":"Sheet1!E19","v":0}]
["Country_8",{"$f":"Sheet1!E20","v":0}]
[]
["Type of Shares (Ordinary or Preference)"]
["Country_1",{"$f":"Sheet1!F13","v":0}]
["Country_2",{"$f":"Sheet1!F14","v":0}]
["Country_3",{"$f":"Sheet1!F15","v":0}]
["Country_4",{"$f":"Sheet1!F16","v":0}]
["Country_5",{"$f":"Sheet1!F17","v":0}]
["Country_6",{"$f":"Sheet1!F18","v":0}]
["Country_7",{"$f":"Sheet1!F19","v":0}]
["Country_8",{"$f":"Sheet1!F20","v":0}]
[]
["Change from Previous Quarter"]
["Country_1",{"$f":"Sheet1!G13","v":0}]
["Country_2",{"$f":"Sheet1!G14","v":0}]
["Country_3",{"$f":"Sheet1!G15","v":0}]
["Country_4",{"$f":"Sheet1!G16","v":0}]
["Country_5",{"$f":"Sheet1!G17","v":0}]
["Country_6",{"$f":"Sheet1!G18","v":0}]
["Country_7",{"$f":"Sheet1!G19","v":0}]
["Country_8",{"$f":"Sheet1!G20","v":0}]
[]
["Name and Residential or Registered Address of Shareholder"]
["Country_1",{"$f":"Sheet1!B24:C24","v":0}]
["Country_2",{"$f":"Sheet1!B25:C25","v":0}]
["Country_3",{"$f":"Sheet1!B26:C26","v":0}]
["Country_4",{"$f":"Sheet1!B27:C27","v":0}]
["Country_5",{"$f":"Sheet1!B28:C28","v":0}]
["Country_6",{"$f":"Sheet1!B29:C29","v":0}]
["Country_7",{"$f":"Sheet1!B30:C30","v":0}]
["Country_8",{"$f":"Sheet1!B31:C31","v":0}]
[]
["Change from Previous Quarter"]
["Country_1",{"$f":"Sheet1!D24","v":0}]
["Country_2",{"$f":"Sheet1!D25","v":0}]
["Country_3",{"$f":"Sheet1!D26","v":0}]
["Country_4",{"$f":"Sheet1!D27","v":0}]
["Country_5",{"$f":"Sheet1!D28","v":0}]
["Country_6",{"$f":"Sheet1!D29","v":0}]
["Country_7",{"$f":"Sheet1!D30","v":0}]
["Country_8",{"$f":"Sheet1!D31","v":0}]
[]
["Date and Method* of Acquisition or Divestment"]
["Country_1",{"$f":"Sheet1!E24","v":0}]
["Country_2",{"$f":"Sheet1!E25","v":0}]
["Country_3",{"$f":"Sheet1!E26","v":0}]
["Country_4",{"$f":"Sheet1!E27","v":0}]
["Country_5",{"$f":"Sheet1!E28","v":0}]
["Country_6",{"$f":"Sheet1!E29","v":0}]
["Country_7",{"$f":"Sheet1!E30","v":0}]
["Country_8",{"$f":"Sheet1!E31","v":0}]

{"sheet":"Sheet2","index":5,"n_rows":29,"n_cols":1,"rows_kept":29,"cut":false,"hidden":true,"merged":[]}
["Select Institution"]
["ANSA Bank Limited"]
["ANSA Merchant Bank Limited "]
["Caribbean Finance Company Limited"]
["Citibank (Trinidad & Tobago) Limited"]
["Citicorp Merchant Bank Limited"]
["Development Finance Limited "]
["Fidelity Finance and Leasing Company Limited "]
["First Citizens Bank Limited "]
["First Citizens Depository Services Limited"]
["First Citizens Holdings Limited"]
["First Citizens Trustee Services Limited  "]
["FirstCaribbean International Bank (Trinidad & Tobago) Limited "]
["Guardian Group Trust Limited "]
["Island Finance Trinidad & Tobago Limited"]
["Jamaica Money Market Brokers (Trinidad and Tobago) Limited"]
["JMMB Bank (T&T) Limited"]
["JMMB Express Finance (T&T) Limited"]
["Massy Finance GFC Limited"]
["NCB Global Finance Limited "]
["RBC Financial (Caribbean) Limited"]
["RBC Investment Management (Caribbean) Limited"]
["RBC Merchant Bank (Caribbean) Limited "]
["RBC Royal Bank (Trinidad and Tobago) Limited"]
["RBC Trust (Trinidad and Tobago) Limited"]
["Republic Bank Limited "]
["Republic Financial Holdings Limited"]
["Scotia Investments Trinidad and Tobago Limited"]
["Scotiabank Trinidad and Tobago Limited "]

{"sheet":"Sheet3","index":6,"n_rows":0,"n_cols":0,"rows_kept":0,"cut":false,"hidden":true,"merged":[]}